Cogmind - Beta 16 @@@ ROGUE MODE // 2025.11.18 @ 21:44:29 Player: guru-sr Result: Destroyed by 54-4PC(R) with Subdweller Machine Gun Performance ------------- Evolutions (0) 0 Regions Visited (2) 400 Robots Destroyed (38) 190 Value Destroyed (932) 932 Prototype IDs (0) 0 Alien Tech Used (0) 0 Bonus (0) 0 TOTAL SCORE: 1522 Bonus ------- None Cogmind --------- Core Integrity 0/250 Matter 273/300 Energy 250/250 System Corruption 0% Temperature Cool (0) Movement Rolling (130) Ox2 Location -10/Subcaves Parts ------- > --- POWER (1) -------- Ion Engine > --- PROPULSION (2) --- Light Treads Subdweller Monowheel > --- UTILITY (2) ------ High-capacity Storage Unit Core Shielding > --- WEAPON (2) ------- Subdweller Beam Cannon Subdweller Machine Gun > --- INVENTORY (20) --- Light Nuclear Core Spiked Treads Subdweller Monowheel Improved Heat Sink Large Matter Pod (150) Improved Terrain Scanner Seismic Detector Makeshift Light Armor Plating Hacking Suite Hacking Suite Subdweller Laser Subdweller Laser Heavy Assault Rifle Barrage Gun Makeshift Shrapnel Gun Grenade Launcher Subdweller Shrapnel Launcher Datajack Ripper Peak State ------------ > --- POWER ------------ Ion Engine > --- PROPULSION ------- Light Treads Subdweller Monowheel > --- UTILITY ---------- High-capacity Storage Unit Core Shielding > --- WEAPON ----------- Subdweller Machine Gun Makeshift Axe > --- INVENTORY -------- Light Nuclear Core Spiked Treads Subdweller Monowheel Improved Heat Sink Large Matter Pod Improved Terrain Scanner Seismic Detector Core Shielding Makeshift Light Armor Plating Hacking Suite Hacking Suite Subdweller Laser Subdweller Beam Cannon Heavy Assault Rifle Heavy Assault Rifle Heavy Assault Rifle Makeshift Shrapnel Gun Grenade Launcher Datajack Piercing Trap [Rating: 16] Favorites ----------- Power Ion Engine Engine Ion Engine Propulsion Light Treads Treads Light Treads Wheel Compact Wheel Utility High-capacity Storage Unit Device Improved Terrain Scanner Storage High-capacity Storage Unit Processor Transport Network Coupler Protection Core Shielding Weapon Assault Rifle Energy Gun Subdweller Laser Energy Cannon Subdweller Beam Cannon Ballistic Gun Assault Rifle Launcher Grenade Launcher Special Weapon Mining Laser Slashing Weapon Makeshift Axe Build | -11 -10 -10 ------- Run | Yrd Mat Sub Slots Evolved . | . . . Power . | . . . Propulsion . | . . . Utility . | . . . Weapon . | . . . Parts Attached 36 | 7 13 16 Power 4 | 1 3 . Engine 4 | 1 3 . Core . | . . . Reactor . | . . . Propulsion 7 | 2 2 3 Treads 4 | 2 1 1 Leg . | . . . Wheel 3 | . 1 2 Hover . | . . . Flight . | . . . Utility 6 | 2 3 1 Device 1 | 1 . . Storage 2 | 1 1 . Processor 1 | . 1 . Hackware . | . . . Protection 2 | . 1 1 Artifact . | . . . Weapon 19 | 2 5 12 Energy Gun 4 | . 1 3 Energy Cannon 2 | . . 2 Ballistic Gun 9 | 2 3 4 Ballistic Cannon . | . . . Launcher 1 | . . 1 Special Weapon 1 | . 1 . Impact Weapon . | . . . Slashing Weapon 2 | . . 2 Piercing Weapon . | . . . Special Melee Weapon . | . . . Unidentified Prototypes . | . . . Parts Lost 2 | . . 2 Power . | . . . Propulsion 1 | . . 1 Utility . | . . . Weapon 1 | . . 1 Highest Loss Streak 1 | . . 1 To Critical Strikes . | . . . Average Backups 18 | 3 16 19 Power 1 | . 2 1 Propulsion 1 | 1 . 2 Utility 8 | . 8 8 Weapon 5 | 1 4 6 Tool/Special . | . . . Unused Backups 27 | . 5 22 Power 2 | . 1 1 Propulsion 2 | . 1 1 Utility 13 | . 2 11 Weapon 9 | . 1 8 Tool/Special 1 | . . 1 Average Slot Usage (%) 99 | . 99 100 Engine 14 | . 14 14 Treads 18 | . 25 14 Wheel 9 | . 2 13 Storage 14 | . 14 14 Protection 13 | . 11 14 Energy Gun 5 | . . 8 Energy Cannon 3 | . . 5 Ballistic Gun 18 | . 27 13 Peak Build Rating 16 | 9 12 16 Average Rating 11 | 6 9 13 On Entrance 7 | . 9 12 Avg Prop Armor Cover (%) 13 | . 12 13 Naked Turns . | . . . Heaviest Build 58 | 12 52 58 Greatest Support 40 | 40 40 20 Greatest Overweight (x) 3 | . 3 3 Average Overweight (x) 2 | . 1 2 Largest Inventory Capacity 20 | 8 20 20 Average Capacity 19 | 7 19 20 Most Carried 20 | 7 20 20 Average Carried 18 | 3 16 19 Final Capacity 20 | 8 20 20 Final Carried 20 | 7 20 19 Class Distribution -------------------- 100% | Mutant Dominant Class ---------------- Mutant | -10/Materials Mutant | -10/Subcaves Resources | -11 -10 -10 ----------- Run | Yrd Mat Sub Matter Collected 1563 | 302 727 534 Remotely . | . . . Salvage Created 1166 | 141 677 348 Parts 78 | 8 47 23 Haulers Intercepted 2 | . 2 . Recyclers Shooed . | . . . Parts Field Recycled . | . . . Retrieved Matter . | . . . Parts Self-Destructed 19 | . . 19 Prevented . | . . . Parts Restored . | . . . Kills | -11 -10 -10 ------- Run | Yrd Mat Sub Combat Hostiles Destroyed 25 | . 11 14 Guns 16 | . 11 5 Cannons 5 | . . 5 AOE 4 | . . 4 Classes Destroyed 9 | 2 5 2 Worker 2 | . 2 . Tunneler 2 | 2 . . Hauler 2 | . 2 . Recycler 1 | 1 . . Operator 4 | . 4 . Watcher 2 | . 2 . Swarmer 5 | . . 5 Grunt 11 | . 11 . Subdweller 9 | . . 9 Best Kill Streak 4 | 3 3 4 Combat Bots Only 4 | . 2 4 Max Kills in Single Turn 4 | 1 1 4 Gunslinging . | . . . Exploded 4 | . . 4 Melee . | . . . Uniques/NPCs Destroyed . | . . . Combat | -11 -10 -10 -------- Run | Yrd Mat Sub Hostile Shots Fired 133 | . 57 76 Missed 44 | . 17 27 Hits 89 | . 40 49 Projectile 89 | . 40 49 Critical Strikes 2 | . 2 . Actively Blocked 1 | . . 1 Damage Taken 1496 | . 494 1002 Core 250 | . 35 215 Absorbed by Shields . | . . . Redirected to Shielding 54 | . 5 49 Regen/Repaired (Parts) 130 | . 130 . Core Remaining (%) 100 | 100 . . Volleys Fired 128 | 8 89 31 Largest 2 | 2 2 2 Hottest 110 | 40 100 110 Shots Fired 244 | 16 166 62 Gun 211 | 16 154 41 Cannon 20 | . . 20 Launcher 1 | . . 1 Special 12 | . 12 . Kinetic 200 | 16 154 30 Thermal 43 | . 12 31 Explosive 1 | . . 1 Electromagnetic . | . . . Robot Hit Streak 25 | 6 23 25 Robot Miss Streak 3 | 2 3 3 Penetration Max . | . . . Secondary Targets 1 | . 1 . Max Gunslinging Chain 1 | . 1 . Shots Hit Robots 159 | 10 103 46 Core Hits 60 | 5 39 16 Critical Kills . | . . . Critical Parts Destroyed 1 | . 1 . Critical Strikes 2 | . 1 1 Destroy 2 | . 1 1 Melee Attacks 26 | . . 26 Impact . | . . . Slashing 26 | . . 26 Piercing . | . . . Sneak Attacks . | . . . Combat Hostiles . | . . . Follow-up Attacks . | . . . Damage Inflicted 2668 | 113 1317 1238 Guns 2010 | 113 1317 580 Cannons 490 | . . 490 Explosions 168 | . . 168 Melee . | . . . Ramming . | . . . Kinetic 1845 | 113 1317 415 Thermal 655 | . . 655 Explosive 168 | . . 168 Electromagnetic . | . . . Impact . | . . . Slashing . | . . . Piercing . | . . . Highest Corruption . | . . . Average Corruption . | . . . Corruption Purged . | . . . Corruption Blocked . | . . . Overload Shots . | . . . Overflow Damage . | . . . Projectiles . | . . . Explosions . | . . . Melee . | . . . Knockbacks . | . . . Impact . | . . . Kinetic . | . . . Secondary . | . . . Self-Inflicted Damage 23 | . . 23 Shots 1 | . . 1 Rammed . | . . . Targets Rammed . | . . . Kicked . | . . . Crushed . | . . . Highest Temperature 60 | . 60 7 Average Temperature 16 | . 18 2 Received Heat Transfer 486 | . 309 177 Siege Activations . | . . . Martial Activations . | . . . Shielding Activations . | . . . Robots Disrupted . | . . . Combat Hostiles . | . . . Robots Corrupted . | . . . Combat Hostiles . | . . . Parts Fried . | . . . Impact Corruptions . | . . . Robots Melted . | . . . Combat Hostiles . | . . . Parts Melted 4 | . . 4 Heat Transferred 878 | . . 878 Parts Sabotaged . | . . . Parts Stolen . | . . . Parts Stripped . | . . . Power Chain Reactions . | . . . Alert | -11 -10 -10 ------- Run | Yrd Mat Sub Maximum Alert Level . | . . . Low Security (%) 100 | 100 100 . Level 1 . | . . . Level 2 . | . . . Level 3 . | . . . Level 4 . | . . . Level 5 . | . . . High Security . | . . . Max Security . | . . . Peak Influence 76 | 5 76 . Initial . | . . . Average 15 | 1 15 . Influence Increases 619 | 15 444 160 Destroy 0b10 Robot/C 320 | . 220 100 Destroy 0b10 Robot/NC 65 | 15 50 . Destroy Leader 78 | . 78 . Successful Hack 25 | . 25 . Select Force Hacks 60 | . 60 . Destroy Structure 11 | . 11 . Lose Combat Pursuer 60 | . . 60 Influence Decreases 619 | 15 413 191 Entered New Map 15 | . . 15 Time Decay 604 | 15 413 176 Squads Dispatched 7 | . 7 . Investigation 3 | . 3 . Extermination . | . . . Reinforcement 4 | . 4 . Assault . | . . . Garrison . | . . . Intercept . | . . . Searches Triggered . | . . . Construction Impeded . | . . . Haulers Reinforced . | . . . Active Scanning Responses . | . . . Cargo Convoy Interrupts . | . . . Stealth | -11 -10 -10 --------- Run | Yrd Mat Sub Distress Signals 1 | . 1 . Communications Jammed . | . . . Distress Signals . | . . . Times Spotted 47 | . 31 16 Peak Tracking Total 6 | . 3 6 Tactical Retreats 2 | . . 2 Traps | -11 -10 -10 ------- Run | Yrd Mat Sub Traps Triggered 2 | . 1 1 Indirectly . | . . . Trap Hack Attempts . | . . . Triggered . | . . . Disarmed . | . . . Reprogrammed . | . . . Reused 4 | . . 4 Traps Extracted . | . . . Installed 4 | . . 4 Triggered . | . . . Most Traps Carried 1 | . . 1 Machines | -11 -10 -10 ---------- Run | Yrd Mat Sub Machines Disabled . | . . . Max in Single Turn . | . . . Machines Repaired . | . . . Machines Dismantled . | . . . Machines Sabotaged . | . . . Overloaded Fab Kills . | . . . Hacking | -11 -10 -10 --------- Run | Yrd Mat Sub Machines Accessed 7 | . 7 . Terminals 4 | . 4 . Fabricators . | . . . Repair Stations 1 | . 1 . Recycling Units 2 | . 2 . Scanalyzers . | . . . Garrison Access . | . . . Total Hacks 19 | . 19 . Successful 9 | . 9 . Failed 10 | . 10 . Catastrophic 2 | . 2 . Database Lockouts . | . . . Manual 14 | . 14 . Terminals 15 | . 15 . Fabricators . | . . . Repair Stations 2 | . 2 . Recycling Units 2 | . 2 . Scanalyzers . | . . . Garrison Access . | . . . Terminal Hacks 2 | . 2 . Robot Analysis 1 | . 1 . Terminal Index 1 | . 1 . Fabricator Hacks . | . . . Repair Station Hacks 2 | . 2 . Scan Component 1 | . 1 . Repair 1 | . 1 . Recycling Unit Hacks . | . . . Scanalyzer . | . . . Garrison Access Hacks . | . . . Unauthorized Hacks 5 | . 5 . Terminals 3 | . 3 . Botnet 1 | . 1 . Operators 1 | . 1 . Skim 1 | . 1 . Fabricators . | . . . Repair Stations . | . . . Recycling Units 2 | . 2 . Tunnel 2 | . 2 . Scanalyzers . | . . . Garrison Access . | . . . Data Cores Recovered . | . . . Used . | . . . Hacking Detections 5 | . 5 . Full Trace Events 1 | . 1 . Feedback Events . | . . . Feedback Blocked . | . . . Robot Schematics Acquired . | . . . Robots Built . | . . . Authchips . | . . . Time . | . . . Total Robot Build Rating . | . . . Part Schematics Acquired . | . . . Parts Built . | . . . Authchips . | . . . Time . | . . . Total Part Build Rating . | . . . Part Studies Acquired . | . . . Parts Repaired 1 | . 1 . Time 26 | . 26 . Parts Recycled . | . . . Recycled Matter . | . . . Retrieved Matter . | . . . Retrieved Components . | . . . Parts Scanalyzed . | . . . Part Schematics Acquired . | . . . Parts Damaged . | . . . Bothacking | -11 -10 -10 ------------ Run | Yrd Mat Sub Used RIF Installer . | . . . Robots Hacked . | . . . Non-combat . | . . . Combat . | . . . Robot Hacks Applied . | . . . Relay Couplers Released . | . . . Fabnet Peak Effective % . | . . . Robots Rewired . | . . . Allies Hacked . | . . . Hacks Repelled . | . . . Allies | -11 -10 -10 -------- Run | Yrd Mat Sub Total Allies . | . . . Largest Group . | . . . Highest-Rated Group . | . . . Highest-Rated Ally . | . . . Total Orders . | . . . Ally Attacks . | . . . Total Damage . | . . . Kills . | . . . Allies Corrupted . | . . . Allies Melted . | . . . Intel | -11 -10 -10 ------- Run | Yrd Mat Sub Active Infowar (turns) 368 | 27 341 . Terrain 367 | 27 340 . T.N.C. 1 | . 1 . Robot Analysis Total 1 | . 1 . Derelict Logs Recovered 1 | . . 1 Drone Launches . | . . . Drone Recoveries . | . . . Exploration | -11 -10 -10 ------------- Run | Yrd Mat Sub Turns Passed 6249 | 98 2398 3753 Spaces Moved 3239 | 41 930 2268 Core 9 | 9 . . Treads 702 | 32 670 . Legs . | . . . Wheels 2528 | . 260 2268 Hover . | . . . Flight . | . . . Fastest Speed 50 | 50 145 130 Average Speed 158 | 135 206 138 Slowest Speed 240 | 160 240 145 Overloaded Moves . | . . . Propulsion Burnouts . | . . . Robots Hopped . | . . . Potential Cave-ins 2 | . . 2 Cave-ins Triggered . | . . . Exploration Rate (%) 60 | 4 98 80 Regions Visited 2 Branch Regions 1 Pre-discovered Areas 2 | . 2 . Known Exits Taken . | . . . Unknown Exits Taken 2 | 1 1 . Scrap Searched 18 | . . 18 Spaces Dug 25 | . 12 13 Terrain Destroyed 31 | . 12 19 Melee 13 | . . 13 Projectile 12 | . 12 . AOE 6 | . . 6 Terrain Rammed . | . . . Walls Destroyed . | . . . Machines Disabled . | . . . Actions | -11 -10 -10 --------- Run | Yrd Mat Sub Total 4069 | 66 1216 2787 Wait 501 | 4 138 359 Move 3237 | 40 929 2268 Hop . | . . . Pick Up 56 | 7 23 26 Fast Attach 14 | 7 4 3 Attach 6 | . 2 4 Detach . | . . . Swap 51 | . 16 35 Drop 46 | . 15 31 Fire 128 | 8 89 31 Melee 26 | . . 26 Ram . | . . . Kick . | . . . Crush . | . . . Escape Stasis . | . . . Rewire . | . . . Trap 4 | . . 4 Miscellaneous . | . . . Route ------- -11/Scrapyard -10/Materials (discovered 6 exits: [*Mat x3] / [*Min x2] / [*Sub]) -10/Subcaves (discovered 4 exits: [*Mat x2] / [*Scr x2]) History --------- Turn | Location | Event 10 | -11/Scrapyard | Discovered new exit (range 16) 99 | -11/Scrapyard | Entered Materials 100 | -10/Materials | Met a group of wandering Federalists 318 | -10/Materials | Build established: Mutant 472 | -10/Materials | Discovered new exit (range 5) 510 | -10/Materials | Discovered new exit (range 5) 630 | -10/Materials | Discovered new exit (range 7) 912 | -10/Materials | Discovered new exit (range 16) 1063 | -10/Materials | Discovered new exit (range 13) 1670 | -10/Materials | Discovered new exit (range 6) 1903 | -10/Materials | Repaired Lgt. Treads 2497 | -10/Materials | Entered Subcaves 2498 | -10/Subcaves | Continued accompanying wandering Federalists (5) 2498 | -10/Subcaves | Approached by a straggling Scientist 2699 | -10/Subcaves | Shifting Twisted Machinery released Sub. Monowheel 2711 | -10/Subcaves | Shifting Twisted Machinery released Battle Rifle 2899 | -10/Subcaves | Scientist uncovered a shortcut to Scraptown 3132 | -10/Subcaves | Ambushed by Subdweller buried in earth 3645 | -10/Subcaves | Shifting Twisted Machinery released Sub. Power Source 3647 | -10/Subcaves | Shifting Twisted Machinery released Piercing Trap 3726 | -10/Subcaves | Discovered new exit (range 7) 4668 | -10/Subcaves | Core integrity fell below 50% 4826 | -10/Subcaves | Curiously followed by a Cobbler waking with a query about "LVR3C" 4906 | -10/Subcaves | A swath of the cavern ceiling suddenly collapsed 5666 | -10/Subcaves | Learned Materials trap positions 5770 | -10/Subcaves | Ambushed by Subdwellers from Twisted Machinery 5916 | -10/Subcaves | Discovered new exit (range 8) 6067 | -10/Subcaves | A Subdweller sparked back to life 6089 | -10/Subcaves | Core integrity fell below 20% 6250 | -10/Subcaves | Destroyed by 54-4PC(R) with Subdweller Machine Gun Last Messages --------------- 05886_ 35-UW4(O) puts together Mak. Spear. 05916_ EXIT=FOUND 06059_ Dropped Piercing Trap. 06060_ Installed Piercing Trap. 06067_ P7-NE3(R) creaks and sparks as it begins to move. 06090_ Sub. Machine Gun destroyed. 06093_ Destroyed Scrap Shield. 06096_ Sub. Optics melted. 06096_ P7-NE3(R) destroyed. 06099_ Acquired 50 matter. 06116_ Dropped Core Shielding. 06130_ Acquired Sub. Laser. 06157_ Subatomizers dissect the Sub. Monowheel. 06161_ Acquired Piercing Trap. 06168_ Acquired Hvy. Assault Rifle. 06177_ Subatomizers dissect the Sub. Monowheel. 06222_ Sub. Monowheel shoots sparks and powers down. 06223_ Dropped Broken Sub. Monowheel. 06245_ Acquired Sub. Monowheel. 06249_ Dropped Piercing Trap. Map ----- +----------------------------------------------------+ | ??????????????## #?###???????????????????????????? | | ??????????????# ## ##???##???##????"???????????? | | ??????????????# " #### #### ### ???????????? | | ???????????????# "" ## ????????????? | | ?????????????### "" #????????????????? | | ?????????????#" ""## ##???????????????? | | ?????????????##"" ### #???????????????? | | ??????????????#"""### ## ###?????????????? | | ????????###???# ""## ##? ????????????? | | ???????## ##??# ##?? ????????????? | | ???????# #### ##??? ????????????? | | ??????## "# # # #????? ????????????? | | ??????# "" # ###????? ????????????? | | ??????## "| # ## ##??????? ????????????? | | ???????# < ## ### #????????# #????????????? | | ???????#### ### ## #???????# #????????????? | | ???????#### """" =#####???????# #????????????? | | ???????# " """ ##??????????## ##?????????##? | | ???????# "" " ##???????????# ##??#?? ## | | ???????## ##""" "#??###???????# ## ## | | ????????######"" ##?## ####???## # | | ????????????## ##??# #???# ??? | | ?????????#### #??## ##?## #?????????? | | ?????????# ##?## ### #?????????? | | ?????????# ### # # ####??????? | | ?????????# !@ < #??????? | | ?????????## ## R #??????? | | ??????????## O ### # # # "??????? | | ??????????## ##?###### # &#??????? | | ??????????# ##???????## ### " #??????? | | ??????????# ##?????????####??#####??????? | | ??????????# ##???????????????????????????? | | ??????????## #####????????????????????????????? | | ??????????## ##???????????????????????????????? | | ##?####?### #???????????????????????????????? | | "###""### ##???????????????????????????????? | | ""# * ### ##????????????????????????????????? | | # ## # #?????????????????????????????????? | | # ^"## ## ##????????????????????????????????? | | [ #/ ### ##???????????????????????????????? | | [ # ## "" ### #???????????????????????????????? | | ### # " "# #???????????????????????????????? | | %## # ! "# ##???????????????????????????????? | | ### #*|*] "# ##????????????????????????????????? | | ^#&" ## #?????????????????????????????????? | | # = #"# ##?###############???????####?????? | | "# & ## ### ## ###??#### ##????? | | "# [ ### #### #####? | | ### ##### ## | | #?##### | +----------------------------------------------------+ Best States ------------- Heat Dissipation 25 Energy Generation 10 Energy Capacity 250 Matter Stores 300 Matter Capacity 300 Sight Range 16 Terrain Scan Range 16 Terrain Scan Density 10 Core Shielding 20 Evasion (%) 50 Recoil Reduction 2 Item Schematics ----------------- None Robot Schematics ------------------ None Fabricated ------------ Nothing Repaired ---------- Lgt. Treads | 7% | -10/Materials Studied --------- None Alien Tech Used ----------------- None Achievements -------------- None Challenges ------------ None Game ------ Seed CooledSystemKatana Manual? 0 Play Time 01:05:08 Cumulative 40.1 hours Start 2025.11.18 @ 20:37:26 End 2025.11.18 @ 21:44:29 Sessions 1 Manual Loads 0 Difficulty Rogue Special Mode None Game No. 22 Rogue 22 Adventurer 0 Explorer 0 Win Type - Total 1 Types 1/0/0/0/0/0/0/0/0/0 Lore% 22 Gallery% 26 Achievement% 33 Wizard Run 0 Options --------- Layout 0 ASCII 0 Keyboard 0 Movement Mouse Keybinds 0 Fullscreen 1 Font 18/SmallcapsGlow Map View 76x50 Zoom Use 0% Tactical HUD 1 Map Filters NONE Filters NONE Steam 1 RUN: 7f6db454-5114-49e6-9d50-1a51f8fcbca2